bitfinex-derivatives/quotes_SOLF0:USTF0_20250424
["timestamp","ask_amount","ask_price","bid_price","bid_amount"]
[1745487200839,2.012,147.0,146.94,27.98]
[1745487201033,15.11871399,147.02,146.95,10.54941841]
[1745487201239,13.14821399,147.02,146.95,10.54941841]
[1745487201646,6.8021,147.01,146.97,6.8039]
[1745487202049,13.14821399,147.02,146.95,10.54941841]
[1745487202250,19.94981399,147.02,146.99,6.803]
[1745487202450,19.94981399,147.02,146.98,27.94]
[1745487202647,19.94981399,147.02,146.98,34.7432]
[1745487202853,13.14821399,147.02,146.98,27.94]
[1745487203255,13.14821399,147.02,147.01,6.8021]
[1745487203448,13.14821399,147.02,146.99,10.54941841]
[1745487203645,13.14821399,147.02,146.94,10.54941841]
[1745487203954,10.54941841,147.01,146.95,27.94]
[1745487204344,74.74276137,147.03,146.95,27.94]
[1745487204548,6.8023,147.01,146.95,27.94]
[1745487204853,74.74276137,147.03,146.98,6.8033]
[1745487205148,6.8023,147.01,146.95,30.0265]
[1745487205353,74.74276137,147.03,146.97,6.8036]
[1745487205756,6.8024,147.01,146.97,6.8036]
[1745487206053,6.8024,147.01,146.98,6.8033]
[1745487206254,6.8024,147.01,146.95,30.0265]
[1745487206554,6.8024,147.01,146.97,6.8036]
[1745487206855,6.8024,147.01,146.95,30.0265]
[1745487207257,64.19334296,147.03,146.96,10.54941841]
[1745487207652,64.19334296,147.03,147.01,6.8018]
[1745487208347,64.19334296,147.03,147.02,6.8016]
[1745487208655,64.19334296,147.03,147.0,27.92]
[1745487208855,74.74276137,147.03,146.97,34.7237]
[1745487209061,74.74276137,147.03,146.96,27.92]
[1745487209256,6.8035,146.98,146.96,27.92]
[1745487210657,10.54941841,146.97,146.9,3.9629]
[1745487210855,10.54941841,146.97,146.92,27.92]
[1745487211458,6.8052,146.95,146.92,34.726]
[1745487211756,6.8052,146.95,146.92,27.92]
[1745487212957,6.8046,146.96,146.92,34.7259]
[1745487213157,10.54941841,147.0,146.92,27.92]
[1745487213559,6.804,146.97,146.94,6.805]
[1745487214058,10.54941841,147.0,146.92,27.92]
[1745487214358,6.8033,146.99,146.92,27.92]
[1745487214655,6.8033,146.99,146.95,6.8046]
[1745487214961,6.8038,146.98,146.95,6.8046]
[1745487215261,6.8042,146.97,146.92,27.92]
[1745487215956,6.8042,146.97,146.94,6.8053]
[1745487216558,10.54941841,147.0,146.94,6.8053]
[1745487216762,10.54941841,146.96,146.92,27.92]
[1745487217160,6.806,146.93,146.9,6.8069]
[1745487218263,10.54941841,146.96,146.89,34.7274]
[1745487218264,6.8063,146.92,146.89,34.7274]
[1745487218562,10.54941841,146.96,146.89,27.92]
[1745487219461,6.8066,146.92,146.89,34.7275]
[1745487219965,6.806,146.93,146.9,6.8069]
[1745487220168,10.54941841,146.94,146.89,27.92]
[1745487220464,6.8067,146.92,146.89,27.92]
[1745487220665,10.54941841,146.94,146.89,27.92]
[1745487221066,6.8069,146.91,146.89,27.92]
[1745487221671,6.8063,146.92,146.89,27.92]
[1745487222369,16.48981841,146.96,146.89,27.92]
[1745487222667,5.9404,146.96,146.89,27.92]
[1745487222863,6.8056,146.94,146.89,27.92]
[1745487223069,1.18455987,147.04,146.89,38.46941841]
[1745487223070,38.48941841,147.0,146.89,38.46941841]
[1745487223467,6.8046,146.96,146.92,6.8061]
[1745487223770,38.48941841,147.0,146.92,6.8061]
[1745487224067,38.48941841,147.0,146.89,38.46941841]
[1745487224271,38.48941841,147.0,146.91,10.54941841]
[1745487224571,38.48941841,147.0,146.89,38.46941841]
[1745487224973,38.48941841,147.0,146.93,6.8058]
[1745487225269,10.54941841,146.98,146.89,38.46941841]
[1745487225475,6.8058,146.94,146.91,6.8067]
[1745487225772,10.54941841,146.98,146.91,6.8067]
[1745487225965,10.54941841,146.98,146.93,6.8057]
[1745487226970,10.54941841,146.98,146.89,27.92]
[1745487227272,10.54941841,146.96,146.89,27.92]
[1745487227671,6.8065,146.92,146.89,27.92]
[1745487227971,5.8362,146.95,146.9,6.8071]
[1745487228772,6.806,146.93,146.9,6.8071]
[1745487229374,6.8063,146.92,146.9,6.8071]
[1745487229568,10.54941841,146.94,146.87,6.8083]
[1745487229870,6.8069,146.91,146.86,27.92]
[1745487230263,5.8362,146.95,146.86,38.46941841]
[1745487230568,6.8061,146.93,146.86,38.46941841]
[1745487230768,6.8061,146.93,146.9,6.8069]
[1745487232173,6.8055,146.94,146.91,6.8066]
[1745487233077,6.8058,146.93,146.91,6.8066]
[1745487233271,5.8362,146.95,146.9,34.7069]
[1745487234072,6.8057,146.94,146.9,34.7069]
[1745487234272,5.8362,146.95,146.91,6.8067]
[1745487236271,6.8058,146.93,146.91,6.8067]
[1745487236576,5.8362,146.95,146.91,6.8067]
[1745487237175,10.54941841,146.96,146.9,27.9]
[1745487237373,10.54941841,146.98,146.9,27.9]
[1745487237775,6.8047,146.96,146.9,27.9]
[1745487237974,10.54941841,146.98,146.9,27.9]
[1745487238275,6.8046,146.96,146.9,27.9]
[1745487238471,10.54941841,146.98,146.9,27.9]
[1745487238676,10.54941841,146.98,146.92,6.8059]
[1745487238876,6.8053,146.95,146.92,6.8059]
[1745487239077,10.54941841,146.98,146.92,6.8059]
[1745487239278,10.54941841,146.98,146.93,6.8058]
[1745487239475,6.8049,146.95,146.93,6.8058]
[1745487239778,10.54941841,146.98,146.92,6.806]
[1745487240283,6.8056,146.94,146.92,6.806]
[1745487240979,6.8058,146.93,146.9,27.9]
[1745487241280,10.54941841,146.96,146.9,27.9]
[1745487241672,10.54941841,146.94,146.9,27.9]
[1745487241980,10.54941841,146.92,146.86,27.9]
[1745487242280,6.8077,146.89,146.86,34.7087]
[1745487242574,10.54941841,146.9,146.86,27.9]
[1745487242879,6.8086,146.87,146.86,27.9]
[1745487243477,6.8086,146.87,146.84,6.8097]
[1745487244181,6.8086,146.87,146.85,6.8094]
[1745487245280,17.35771841,146.88,146.85,6.8094]
[1745487247782,6.8083,146.88,146.85,6.8094]
[1745487249180,14.59421841,146.92,146.83,38.44941841]
[1745487249676,6.8075,146.9,146.83,38.44941841]
[1745487250382,6.8075,146.9,146.87,6.8083]
[1745487252082,6.8076,146.89,146.86,6.8088]
[1745487252385,14.59421841,146.92,146.83,38.44941841]
[1745487253288,14.59421841,146.92,146.87,6.8085]
[1745487253688,6.8075,146.9,146.87,6.8085]
[1745487253881,14.59421841,146.92,146.87,6.8085]
[1745487254885,6.8079,146.89,146.86,6.8088]
[1745487259489,6.8081,146.88,146.86,6.8088]
[1745487259687,6.8081,146.88,146.85,6.8092]
[1745487259887,10.54941841,146.9,146.83,27.9]
[1745487260189,10.54941841,146.9,146.84,6.8098]
[1745487260687,6.8093,146.86,146.84,6.8098]
[1745487261187,6.8093,146.86,146.83,34.7102]
[1745487262490,10.54941841,146.88,146.83,27.9]
[1745487262890,6.8099,146.84,146.83,27.9]
[1745487263081,6.8099,146.84,146.81,538.9]
[1745487263286,10.54941841,146.88,146.81,538.9]
[1745487263791,6.8097,146.85,146.82,6.8108]
[1745487264386,6.81,146.84,146.81,545.7112]
[1745487264899,6.8097,146.85,146.82,6.8108]
[1745487265194,10.54941841,146.88,146.81,538.9]
[1745487265688,10.54941841,146.84,146.8,27.88]
[1745487265896,10.54941841,146.82,146.8,27.88]
[1745487266090,10.54941841,146.82,146.77,27.88]
[1745487266291,6.8122,146.8,146.77,34.6928]
[1745487266593,6.8122,146.8,146.77,27.88]
[1745487266789,6.8116,146.81,146.78,6.8127]
[1745487267293,6.8119,146.8,146.77,34.693]
[1745487267494,10.54941841,146.82,146.77,27.88]
[1745487267894,6.8121,146.8,146.77,34.6932]
[1745487268296,10.54941841,146.8,146.77,27.88]
[1745487268592,6.8123,146.79,146.77,27.88]
[1745487270496,6.8127,146.78,146.77,27.88]
[1745487270795,10.54941841,146.8,146.74,27.9]
[1745487271093,27.9,146.83,146.74,27.9]
[1745487271295,27.9,146.83,146.75,10.54941841]
[1745487271594,27.9,146.83,146.74,27.9]
[1745487271796,6.8118,146.8,146.74,27.9]
[1745487272098,10.54941841,146.82,146.74,27.9]
[1745487272495,10.54941841,146.8,146.74,27.9]
[1745487272696,10.54941841,146.8,146.73,539.16]
[1745487272897,10.54941841,146.8,146.74,27.9]
[1745487273296,6.8125,146.79,146.76,6.8136]
[1745487273498,10.54941841,146.82,146.74,27.9]
[1745487273698,6.812,146.8,146.77,6.8132]
[1745487274002,10.54941841,146.84,146.75,10.54941841]
[1745487274191,6.8111,146.82,146.75,10.54941841]
[1745487274700,6.8116,146.81,146.78,6.8125]
[1745487274894,6.8116,146.81,146.78,34.7125]
[1745487275891,10.54941841,146.82,146.78,27.9]
[1745487276500,6.8121,146.8,146.78,27.9]
[1745487277900,6.8123,146.79,146.78,27.9]
[1745487281906,6.8123,146.79,146.76,6.8135]
[1745487282094,10.54941841,146.82,146.77,6.8131]
[1745487282601,6.8124,146.79,146.77,6.8131]
[1745487282902,10.54941841,146.82,146.76,6.8135]
[1745487283698,6.8127,146.79,146.76,6.8135]
[1745487284403,6.8128,146.78,146.76,6.8135]
[1745487286004,6.8128,146.78,146.75,34.7139]
[1745487286804,6.8133,146.77,146.75,34.7139]
[1745487287196,6.8131,146.78,146.75,34.7139]
[1745487287507,6.75909325,146.77,146.75,27.9]
[1745487288005,6.8137,146.76,146.75,27.9]
[1745487288203,6.8137,146.76,146.73,545.9748]
[1745487288500,13.57249325,146.77,146.73,539.16]
[1745487289504,6.8137,146.76,146.74,6.8145]
[1745487291609,13.57249325,146.77,146.74,6.8145]
[1745487291804,6.75909325,146.79,146.76,6.8137]
[1745487291998,6.75909325,146.8,146.74,6.75909325]
[1745487292304,6.8126,146.79,146.76,6.8135]
[1745487293008,6.8126,146.79,146.77,6.8132]
[1745487296019,6.8126,146.79,146.76,6.8134]
[1745487296715,6.8126,146.79,146.77,6.8131]
[1745487299219,6.8127,146.78,146.77,6.8131]
[1745487299819,6.8127,146.78,146.76,6.8134]
[1745487300216,6.8125,146.79,146.75,6.75909325]
[1745487300420,6.75909325,146.8,146.77,6.8129]
[1745487300716,13.57119325,146.8,146.77,6.8129]
[1745487300922,6.75909325,146.8,146.77,6.8129]
[1745487302022,6.8125,146.79,146.77,6.8129]
[1745487302321,6.75909325,146.8,146.76,27.86]
[1745487302521,6.8132,146.77,146.76,27.86]
[1745487302717,6.8132,146.77,146.74,6.75909325]
[1745487303621,13.57209325,146.78,146.75,6.8139]
[1745487304425,6.8132,146.77,146.75,6.8139]
[1745487304620,6.75909325,146.78,146.75,6.8139]
[1745487305326,6.75909325,146.78,146.73,567.02]
[1745487305627,6.75909325,146.76,146.73,567.02]
[1745487306123,13.57299325,146.76,146.74,6.8144]
[1745487306327,6.75909325,146.8,146.74,6.75909325]
[1745487306628,6.8127,146.79,146.76,6.8134]
[1745487306828,6.75909325,146.8,146.76,6.8134]
[1745487307130,6.8126,146.79,146.76,6.8134]
[1745487307328,6.75909325,146.8,146.74,6.75909325]
[1745487307531,5.8857,146.85,146.76,6.75909325]
[1745487307730,5.8857,146.85,146.8,6.75909325]
[1745487307932,12.64479325,146.85,146.8,6.75909325]
[1745487308130,6.8108,146.83,146.8,13.57089325]
[1745487308632,19.45449325,146.85,146.82,6.8106]
[1745487308933,6.75909325,146.85,146.8,6.75909325]
[1745487309326,6.8102,146.84,146.81,6.8113]
[1745487310034,6.8102,146.84,146.82,6.8108]
[1745487310326,6.75909325,146.85,146.82,6.8108]
[1745487310533,13.56879325,146.85,146.8,6.75909325]
[1745487310727,27.86,146.89,146.78,27.86]
[1745487310728,6.75909325,146.88,146.85,6.8094]
[1745487310928,6.75909325,146.87,146.82,27.86]
[1745487311233,6.75909325,146.87,146.82,41.42979325]
[1745487311436,6.75909325,146.87,146.82,34.61909325]
[1745487311736,6.8097,146.85,146.82,27.86]
[1745487311936,6.75909325,146.85,146.82,27.86]
[1745487312137,6.75909325,146.85,146.81,27.86]
[1745487312337,6.8103,146.84,146.81,27.86]
[1745487312533,6.75909325,146.85,146.81,27.86]
[1745487312738,6.75909325,146.85,146.81,34.61909325]
[1745487312939,6.75909325,146.85,146.82,6.8106]
[1745487313936,6.75909325,146.87,146.81,34.61909325]
[1745487314240,6.8093,146.86,146.81,34.61909325]
[1745487314439,6.8093,146.86,146.83,6.8101]
[1745487314741,6.75909325,146.85,146.81,34.61909325]
[1745487314940,6.75909325,146.85,146.81,27.86]
[1745487315341,6.8104,146.83,146.81,27.86]
[1745487315840,6.8104,146.83,146.81,34.671]
[1745487318843,6.8104,146.83,146.81,27.86]
[1745487319742,6.75909325,146.85,146.81,34.6711]
[1745487320037,6.75909325,146.85,146.81,27.86]
[1745487320342,6.8107,146.83,146.81,27.86]
[1745487321143,6.8107,146.83,146.81,34.6713]
[1745487321845,6.75909325,146.87,146.82,6.75909325]
[1745487322543,6.8098,146.85,146.82,13.56959325]
[1745487323440,6.8101,146.84,146.82,13.56959325]
[1745487323643,6.8101,146.84,146.81,27.86]
[1745487323644,6.8101,146.84,146.81,34.6311]
[1745487323844,6.75909325,146.83,146.81,27.82]
[1745487324139,6.75909325,146.83,146.78,34.57909325]
[1745487324547,6.8113,146.82,146.79,6.8121]
[1745487324941,6.75909325,146.83,146.78,34.57909325]
[1745487325140,6.75909325,146.81,146.76,34.57909325]
[1745487325342,6.0705,146.86,146.76,27.82]
[1745487325343,6.75909325,146.79,146.76,27.82]
[1745487325645,6.8131,146.78,146.76,27.82]
[1745487326448,13.57159325,146.79,146.76,34.6336]
[1745487327048,6.8125,146.79,146.76,34.6336]
[1745487327247,6.8129,146.78,146.76,34.6336]
[1745487329847,6.8129,146.78,146.76,27.82]
[1745487330046,6.8132,146.77,146.76,27.82]
[1745487330243,6.75909325,146.77,146.73,566.98]
[1745487330546,6.814,146.76,146.73,573.795]
[1745487330741,6.75909325,146.77,146.73,566.98]
[1745487330943,6.75909325,146.77,146.73,573.7948]
[1745487331147,6.8144,146.75,146.73,573.7948]
[1745487331444,6.8144,146.75,146.73,34.6348]
[1745487332349,6.8144,146.75,146.73,27.82]
[1745487333044,6.75909325,146.77,146.66,539.44]
[1745487333245,6.75909325,146.75,146.69,6.75909325]
[1745487333949,6.8154,146.73,146.7,6.8162]
[1745487334449,6.8155,146.72,146.69,13.57579325]
[1745487334750,6.75909325,146.75,146.69,6.75909325]
[1745487335050,6.8149,146.74,146.69,6.75909325]
[1745487335452,6.8152,146.73,146.7,6.8162]
[1745487337751,6.8156,146.72,146.7,6.8162]
[1745487338347,6.8153,146.73,146.7,6.8162]
[1745487340052,6.8156,146.72,146.7,6.8162]
[1745487340253,6.8156,146.72,146.69,13.57579325]
[1745487340452,6.8156,146.72,146.69,6.75909325]
[1745487341255,6.8156,146.72,146.7,6.8164]
[1745487342554,6.8156,146.72,146.69,13.57579325]
[1745487343351,13.57439325,146.73,146.7,6.8163]
[1745487344757,6.75909325,146.73,146.69,6.8167]
[1745487345254,6.8159,146.72,146.69,6.8167]
[1745487345554,6.75909325,146.73,146.69,6.8167]
[1745487345857,6.8156,146.72,146.69,6.8167]
[1745487346154,6.75909325,146.73,146.69,6.8167]
[1745487347254,6.8156,146.72,146.7,6.8163]
[1745487347457,6.75909325,146.73,146.7,6.8163]
[1745487349256,6.8156,146.72,146.7,6.8163]
[1745487349452,6.75909325,146.73,146.7,6.8163]
[1745487349750,13.57429325,146.73,146.7,6.8163]
[1745487349955,6.75909325,146.73,146.7,6.8163]
[1745487350159,6.75909325,146.73,146.69,6.8167]
[1745487350461,6.8155,146.72,146.69,6.8167]
[1745487350854,6.8155,146.72,146.7,6.8164]
[1745487351258,6.8155,146.72,146.68,6.75909325]
[1745487351455,6.8155,146.72,146.69,6.8166]
[1745487351658,13.57419325,146.73,146.68,6.75909325]
[1745487351856,13.57419325,146.73,146.7,6.8161]
[1745487352955,27.82,146.79,146.67,27.82]
[1745487352956,13.57509325,146.71,146.67,27.82]
[1745487353461,13.57509325,146.71,146.68,6.8173]
[1745487354754,6.8169,146.69,146.67,27.82]
[1745487354958,6.75909325,146.69,146.64,6.75909325]
[1745487355265,6.75909325,146.67,146.64,27.8]
[1745487356957,13.57719325,146.67,146.64,34.55909325]
[1745487357160,6.75909325,146.69,146.64,34.55909325]
[1745487357366,6.75909325,146.71,146.66,6.75909325]
[1745487358662,6.8169,146.7,146.66,13.57699325]
[1745487359059,6.75909325,146.71,146.66,13.57699325]
[1745487359361,6.8167,146.7,146.66,13.57699325]
[1745487359563,6.8167,146.7,146.67,6.8178]
[1745487359965,6.8169,146.69,146.67,6.8178]
[1745487360263,6.75909325,146.71,146.67,6.8178]
[1745487360456,6.75909325,146.73,146.68,6.75909325]
[1745487360657,6.816,146.71,146.68,34.55909325]
[1745487361059,6.816,146.71,146.68,41.37619325]
[1745487361266,6.816,146.71,146.68,34.55909325]
[1745487361461,12.73549325,146.74,146.68,34.55909325]
[1745487361764,12.73549325,146.74,146.7,13.57529325]
[1745487361968,6.8153,146.73,146.7,13.57529325]
[1745487362161,12.73549325,146.74,146.7,13.57529325]
[1745487362661,27.8,146.78,146.7,6.75909325]
[1745487362864,6.75909325,146.77,146.72,6.75909325]
[1745487363061,6.8142,146.75,146.72,6.75909325]
[1745487363364,6.8142,146.75,146.72,13.57439325]
[1745487363961,6.8147,146.74,146.72,13.57439325]
[1745487364367,6.75909325,146.75,146.7,6.75909325]
[1745487365262,6.8149,146.74,146.71,6.8159]
[1745487365467,8.72229325,146.77,146.72,6.75909325]
[1745487365770,8.72229325,146.77,146.72,34.55909325]
[1745487366168,6.8144,146.75,146.72,41.37429325]
[1745487368068,6.8148,146.74,146.72,41.37429325]
[1745487371872,6.8143,146.75,146.72,41.37429325]
[1745487374779,6.8142,146.75,146.72,34.55909325]
[1745487374979,6.75909325,146.76,146.72,34.55909325]
[1745487376179,6.8146,146.74,146.72,41.37429325]
[1745487376681,6.8151,146.73,146.72,27.8]
[1745487377085,6.75909325,146.76,146.72,27.8]
[1745487377284,6.8149,146.74,146.72,27.8]
[1745487377782,6.8143,146.75,146.72,34.6154]
[1745487378981,6.8134,146.77,146.72,34.55909325]
[1745487379188,6.75909325,146.78,146.74,6.75909325]
[1745487379383,13.57209325,146.78,146.75,6.8139]
[1745487379881,6.75909325,146.78,146.74,6.75909325]
[1745487380185,6.8132,146.77,146.74,13.57339325]
[1745487380380,6.8132,146.77,146.72,27.8]
[1745487380577,6.75909325,146.78,146.73,6.75909325]
[1745487380876,13.57209325,146.78,146.75,6.8139]
[1745487381381,13.57149325,146.79,146.76,6.8136]
[1745487382482,6.75909325,146.79,146.77,6.8132]
[1745487382687,6.75909325,146.81,146.75,6.75909325]
[1745487382881,6.75909325,146.83,146.77,6.75909325]
[1745487383086,6.8116,146.81,146.78,6.8125]
[1745487383384,13.57069325,146.81,146.78,6.8125]
[1745487383582,6.812,146.8,146.77,13.57209325]
[1745487384987,6.812,146.8,146.77,6.813]
[1745487385583,6.813,146.78,146.76,27.76]
[1745487385789,6.75909325,146.77,146.76,27.76]
[1745487386190,13.57229325,146.77,146.76,27.76]
[1745487386485,13.57229325,146.77,146.73,6.75909325]
[1745487386688,6.8138,146.76,146.73,6.8148]
[1745487386890,6.8138,146.76,146.73,27.74]
[1745487387190,6.8138,146.76,146.72,6.75909325]
[1745487387388,6.8138,146.76,146.73,34.5548]
[1745487387888,13.57249325,146.77,146.73,27.74]
[1745487388088,6.75909325,146.77,146.73,27.74]
[1745487388484,13.57249325,146.77,146.74,6.8145]
[1745487389790,6.8137,146.76,146.73,34.5548]
[1745487390691,6.8134,146.77,146.74,6.8145]
[1745487390986,6.8134,146.77,146.73,27.74]
[1745487391193,6.75909325,146.78,146.74,6.75909325]
[1745487391494,6.75909325,146.8,146.74,6.75909325]
[1745487392188,6.75909325,146.82,146.76,6.75909325]
[1745487392392,6.75909325,146.83,146.78,6.75909325]
[1745487392893,6.8116,146.81,146.78,6.75909325]
[1745487393994,6.8116,146.81,146.79,6.8122]
[1745487394491,6.8118,146.8,146.78,13.57159325]
[1745487394792,6.8118,146.8,146.77,27.74]
[1745487394993,6.8118,146.8,146.77,34.5528]
[1745487395192,6.8118,146.8,146.77,27.74]
[1745487395495,6.8118,146.8,146.77,34.5528]
[1745487395995,6.75909325,146.81,146.77,27.74]
[1745487396395,6.8125,146.79,146.77,27.74]
[1745487397195,6.8127,146.78,146.77,27.74]
[1745487397395,6.75909325,146.81,146.77,27.74]
[1745487397698,6.75909325,146.79,146.77,27.74]
[1745487398597,6.75909325,146.79,146.77,34.553]
[1745487398996,6.75909325,146.79,146.77,6.813]
[1745487399597,6.75909325,146.79,146.76,6.8135]
[1745487399993,6.8132,146.77,146.74,27.74]
[1745487400199,6.75909325,146.77,146.74,27.74]
[1745487400900,6.8141,146.75,146.74,27.74]
[1745487401095,6.75909325,146.77,146.74,27.74]
[1745487401600,6.8141,146.75,146.74,27.74]
[1745487405403,6.8141,146.75,146.73,6.8148]
[1745487406103,6.8141,146.75,146.72,6.8153]
[1745487406602,6.8141,146.75,146.71,34.49909325]
[1745487407403,6.8141,146.75,146.72,6.8154]
[1745487407602,6.8146,146.74,146.72,6.8154]
[1745487409903,6.8146,146.74,146.71,41.31489325]
[1745487410804,6.8154,146.73,146.71,34.49909325]
[1745487411409,6.8154,146.73,146.71,41.31509325]
[1745487411898,6.8148,146.74,146.71,41.31509325]
[1745487412204,6.8148,146.74,146.72,6.8154]
[1745487412398,6.8136,146.77,146.73,6.75909325]
[1745487412604,6.75909325,146.79,146.74,6.8143]
[1745487413103,6.8135,146.77,146.74,6.8143]
[1745487414605,6.8135,146.77,146.75,6.814]
[1745487415103,6.75909325,146.79,146.75,6.75909325]
[1745487415301,10.60999325,146.81,146.77,6.75909325]
[1745487415698,6.812,146.8,146.77,13.57189325]
[1745487417913,10.60999325,146.81,146.77,6.75909325]
[1745487417914,6.8123,146.79,146.77,6.75909325]
[1745487418100,6.8123,146.79,146.76,6.8135]
[1745487419010,6.8123,146.79,146.77,6.813]
[1745487420214,6.75909325,146.81,146.78,6.8126]
[1745487420411,6.75909325,146.83,146.79,6.75909325]
[1745487420711,6.75909325,146.83,146.77,6.75909325]
[1745487420908,6.75909325,146.83,146.78,6.8125]
[1745487421810,6.8118,146.81,146.78,6.8125]
[1745487423408,6.8118,146.81,146.75,34.45909325]
[1745487423409,6.75909325,146.81,146.75,34.45909325]
[1745487423605,6.75909325,146.79,146.75,34.45909325]
[1745487424010,6.75909325,146.79,146.75,41.27299325]
[1745487424011,6.813,146.78,146.75,41.27299325]
[1745487424313,6.75909325,146.79,146.75,27.7]
[1745487424910,6.75909325,146.79,146.75,34.45909325]
[1745487425112,6.75909325,146.79,146.76,6.8133]
[1745487426316,6.8127,146.78,146.76,6.8133]
[1745487429019,6.8127,146.78,146.75,41.27299325]
[1745487429622,6.8127,146.78,146.76,6.8137]
[1745487431422,6.8127,146.78,146.75,34.5139]
[1745487431622,6.8133,146.77,146.75,27.7]
[1745487432320,6.8137,146.76,146.75,27.7]
[1745487432822,6.8134,146.77,146.75,27.7]
[1745487435126,6.8134,146.77,146.75,34.5141]
[1745487435826,6.75909325,146.79,146.76,6.8137]
[1745487436126,6.75909325,146.81,146.76,6.8137]
[1745487436624,6.75909325,146.81,146.76,13.57279325]
[1745487437027,6.75909325,146.81,146.76,6.75909325]
[1745487437028,6.813,146.78,146.76,6.75909325]
[1745487437222,6.75909325,146.81,146.76,6.75909325]
[1745487437525,6.8131,146.78,146.76,6.75909325]
[1745487437725,6.8131,146.78,146.76,13.57269325]
[1745487439026,6.8131,146.78,146.76,6.75909325]
[1745487440130,6.8131,146.78,146.75,34.5139]
[1745487441532,6.8125,146.79,146.76,6.75909325]
[1745487441729,6.75909325,146.81,146.76,6.75909325]
[1745487442430,4.0874,146.82,146.78,6.75909325]
[1745487442828,4.0874,146.82,146.78,13.57149325]
[1745487443229,4.0874,146.82,146.78,6.75909325]
[1745487444232,6.8121,146.8,146.78,6.75909325]
[1745487445227,6.8116,146.81,146.78,13.57169325]
[1745487445732,6.8119,146.8,146.78,13.57169325]
[1745487447135,6.8116,146.81,146.78,13.57169325]
[1745487447434,6.75909325,146.85,146.8,6.75909325]
[1745487447835,6.75909325,146.85,146.81,6.8111]
[1745487448234,27.66,146.88,146.82,6.75909325]
[1745487448435,6.8097,146.85,146.82,13.56959325]
[1745487449137,6.8097,146.85,146.83,6.8103]
[1745487449641,6.8093,146.86,146.83,6.8103]
[1745487449833,6.75909325,146.88,146.84,6.75909325]
[1745487450529,6.75909325,146.88,146.83,27.66]
[1745487451037,6.8098,146.85,146.83,27.66]
[1745487453638,6.8092,146.86,146.83,27.66]
[1745487453838,6.75909325,146.88,146.84,13.56889325]
[1745487454033,6.75909325,146.88,146.84,6.75909325]
[1745487456345,5.8865,146.89,146.84,13.56899325]
[1745487456541,6.75909325,146.88,146.84,13.56899325]
[1745487457341,6.75909325,146.88,146.84,6.75909325]
[1745487458042,6.8093,146.86,146.84,6.75909325]
[1745487459738,6.8088,146.87,146.84,13.56889325]
[1745487459938,6.75909325,146.88,146.83,27.66]
[1745487460242,6.8097,146.85,146.83,27.66]
[1745487460435,6.75909325,146.86,146.83,27.66]
[1745487460638,6.75909325,146.86,146.8,34.39909325]
[1745487460834,6.8103,146.84,146.81,6.8112]
[1745487461142,6.75909325,146.86,146.81,6.8112]
[1745487461344,6.8104,146.83,146.8,41.21069325]
[1745487463143,6.811,146.82,146.8,34.39909325]
[1745487463340,6.75909325,146.84,146.8,34.39909325]
[1745487463636,6.8113,146.81,146.8,27.64]
[1745487464643,6.811,146.82,146.8,27.64]
[1745487466346,6.811,146.82,146.8,41.21089325]
[1745487466846,6.811,146.82,146.8,34.39909325]
[1745487467046,6.8113,146.81,146.8,27.64]
[1745487467245,6.75909325,146.82,146.77,27.64]
[1745487467745,6.8121,146.8,146.77,34.4529]
[1745487467946,6.8121,146.8,146.77,27.64]
[1745487468747,6.8115,146.81,146.77,27.64]
[1745487469245,6.8115,146.81,146.78,6.8126]
[1745487469447,6.8115,146.81,146.78,6.75909325]
[1745487469747,6.8115,146.81,146.78,13.57169325]
[1745487469949,6.8118,146.8,146.78,13.57169325]
[1745487471252,6.8118,146.8,146.78,6.75909325]
[1745487472051,6.8125,146.79,146.77,27.64]
[1745487473053,6.75909325,146.8,146.77,34.39909325]